bitfinex/quotes_SOLUSD_20250912
["timestamp","ask_amount","ask_price","bid_price","bid_amount"]
[1757699315250,0.1,240.87,240.84,38.15213419]
[1757699317830,0.1,240.87,240.84,4.83213419]
[1757699318032,0.1,240.87,240.84,38.15213419]
[1757699321053,0.1,240.87,240.84,51.7477282]
[1757699322857,0.1,240.87,240.85,13.59559401]
[1757699323049,0.1,240.87,240.86,46.89559401]
[1757699323245,0.1,240.87,240.86,47.57559401]
[1757699323446,0.1,240.87,240.86,51.72738343]
[1757699325741,0.1,240.87,240.86,51.04738343]
[1757699325937,0.1,240.89,240.87,13.59559401]
[1757699326141,0.1,240.89,240.87,14.25559401]
[1757699326951,0.1,240.89,240.87,18.40721106]
[1757699330660,0.1,240.89,240.87,51.02721106]
[1757699330861,0.1,240.89,240.87,51.68721106]
[1757699331049,0.1,240.89,240.87,17.74721106]
[1757699331254,0.1,240.89,240.87,51.02721106]
[1757699331650,0.1,240.89,240.87,51.68721106]
[1757699332477,0.1,240.89,240.88,93.13559401]
[1757699332660,0.1,240.89,240.88,13.59559401]
[1757699332966,0.1,240.89,240.88,18.40703871]
[1757699335154,0.06,240.9,240.89,13.59559401]
[1757699335356,0.06,240.9,240.89,47.55559401]
[1757699336256,0.06,240.9,240.89,51.70686637]
[1757699337063,0.06,240.9,240.89,18.44686637]
[1757699337273,0.06,240.9,240.89,51.70686637]
[1757699337963,0.06,240.9,240.89,18.44686637]
[1757699338170,0.06,240.9,240.89,51.70686637]
[1757699339364,0.06,240.9,240.89,51.00686637]
[1757699339846,0.06,240.9,240.89,51.70686637]
[1757699340048,0.06,240.9,240.89,51.00686637]
[1757699340546,0.06,240.9,240.89,51.70686637]
[1757699340856,0.68,240.97,240.92,26.0]
[1757699341063,0.68,240.97,240.93,33.24]
[1757699341270,5.6723228,240.98,240.93,33.24]
[1757699341271,0.68,240.96,240.93,33.24]
[1757699341448,0.68,240.96,240.94,4.15041089]
[1757699341643,0.68,240.96,240.95,33.24]
[1757699343066,6.3523228,240.98,240.95,33.24]
[1757699343274,6.3523228,240.98,240.9,0.7]
[1757699343275,0.68,240.97,240.96,33.24]
[1757699343461,0.68,240.97,240.9,10.37769347]
[1757699343657,0.68,240.96,240.91,33.24]
[1757699343967,0.68,240.95,240.91,33.24]
[1757699345268,5.6723228,240.98,240.91,33.94]
[1757699345478,0.68,240.97,240.91,33.94]
[1757699345777,0.68,240.97,240.92,14.52764402]
[1757699345967,0.68,240.97,240.93,33.24]
[1757699346159,0.68,240.96,240.93,33.24]
[1757699346560,0.68,240.95,240.93,33.24]
[1757699347374,0.68,240.95,240.93,112.84]
[1757699347574,5.6723228,240.98,240.94,4.15041089]
[1757699347779,0.68,240.96,240.94,4.15041089]
[1757699347958,0.68,240.96,240.95,33.24]
[1757699349767,6.3523228,240.98,240.96,4.1500664]
[1757699349971,6.3523228,240.98,240.97,33.22]
[1757699350274,6.3523228,240.98,240.97,112.82]
[1757699351078,6.3523228,240.98,240.97,116.96989417]
[1757699351377,6.3523228,240.98,240.97,79.6]
[1757699351566,5.6723228,240.98,240.97,116.96989417]
[1757699352655,6.3523228,240.98,240.97,116.96989417]
[1757699353280,6.3523228,240.98,240.97,83.74989417]
[1757699353481,6.3523228,240.98,240.97,116.96989417]
[1757699353662,5.6723228,240.98,240.97,116.96989417]
[1757699353863,5.6723228,240.98,240.97,37.36989417]
[1757699354593,6.3523228,240.98,240.97,4.14989417]
[1757699354777,6.3523228,240.98,240.97,37.36989417]
[1757699354965,5.6723228,240.98,240.97,37.36989417]
[1757699356673,5.7323228,240.98,240.97,37.36989417]
[1757699358871,5.7323228,240.98,240.97,4.14989417]
[1757699359071,5.7323228,240.98,240.97,37.36989417]
[1757699360181,5.7323228,240.98,240.97,4.14989417]
[1757699360377,5.7323228,240.98,240.97,37.34989417]
[1757699361080,5.7323228,240.98,240.97,38.04989417]
[1757699361278,0.06,241.01,241.0,26.0]
[1757699361582,0.06,241.01,241.0,30.14937759]
[1757699361794,0.06,241.01,241.0,39.70881877]
[1757699361961,0.06,241.01,241.0,39.00881877]
[1757699362380,0.06,241.01,241.0,39.70881877]
[1757699362763,0.06,241.01,241.0,6.50881877]
[1757699362969,0.06,241.01,241.0,39.70881877]
[1757699363672,0.06,241.01,241.0,6.50881877]
[1757699363871,0.06,241.01,241.0,39.70881877]
[1757699365482,0.06,241.01,241.0,6.50881877]
[1757699365698,0.06,241.01,241.0,39.70881877]
[1757699366066,0.06,241.01,241.0,119.30881877]
[1757699366270,0.06,241.01,241.0,86.10881877]
[1757699366469,0.06,241.01,241.0,118.60881877]
[1757699366691,0.06,241.01,241.0,119.30881877]
[1757699367788,0.06,241.01,241.0,118.60881877]
[1757699369699,0.06,241.01,241.0,39.00881877]
[1757699370101,1e-08,241.01,241.0,118.60881877]
[1757699370401,1e-08,241.01,241.0,119.30881877]
[1757699371814,0.1,241.12,241.0,119.30881877]
[1757699371815,0.69,241.11,241.0,129.68226275]
[1757699372009,0.69,241.11,241.01,0.7]
[1757699372195,0.69,241.11,241.02,33.18]
[1757699372507,0.69,241.11,241.03,0.7]
[1757699372693,0.69,241.11,241.04,33.18]
[1757699372892,0.69,241.11,241.05,0.7]
[1757699373204,0.69,241.11,241.06,33.18]
[1757699374011,0.69,241.11,241.07,4.14817272]
[1757699374311,0.69,241.1,241.08,33.18]
[1757699374803,0.1,241.12,241.09,33.18]
[1757699374987,0.69,241.11,241.09,33.18]
[1757699375390,0.75,241.11,241.09,33.18]
[1757699376011,0.06,241.11,241.06,4.14832923]
[1757699376191,0.75,241.11,241.07,33.18]
[1757699376783,0.75,241.11,241.07,112.78]
[1757699376984,0.75,241.11,241.07,116.92814097]
[1757699377808,0.06,241.11,241.07,117.62814097]
[1757699378013,0.06,241.11,241.08,0.7]
[1757699378217,0.06,241.11,241.09,33.18]
[1757699378392,0.06,241.11,241.09,113.48]
[1757699379194,0.06,241.11,241.09,117.62767338]
[1757699379393,0.06,241.11,241.09,79.6]
[1757699379605,0.06,241.11,241.1,33.16]
[1757699379799,0.06,241.11,241.1,112.76]
[1757699380689,0.06,241.11,241.1,113.46]
[1757699380890,0.06,241.11,241.1,112.76]
[1757699382312,0.06,241.11,241.1,79.6]
[1757699382509,0.06,241.11,241.1,112.76]
[1757699383210,0.06,241.11,241.1,117.60765657]
[1757699383414,0.06,241.11,241.1,116.90765657]
[1757699383615,0.06,241.11,241.1,79.6]
[1757699383812,0.06,241.11,241.1,112.76]
[1757699384014,0.75,241.11,241.1,79.6]
[1757699384193,4.89748455,241.11,241.1,79.6]
[1757699385627,0.75,241.11,241.1,79.6]
[1757699385804,0.06,241.11,241.1,79.6]
[1757699386712,0.06,241.11,241.1,112.76]
[1757699387417,0.06,241.14,241.13,79.44]
[1757699387596,0.06,241.14,241.13,116.74714054]
[1757699387915,0.06,241.14,241.13,117.44714054]
[1757699388213,0.06,241.14,241.13,113.3]
[1757699388696,0.06,241.14,241.13,84.28714054]
[1757699389098,0.06,241.14,241.13,117.44714054]
[1757699389997,0.06,241.14,241.13,84.28714054]
[1757699390614,0.06,241.14,241.13,117.42714054]
[1757699391216,0.06,241.14,241.13,127.99998577]
[1757699392223,0.06,241.14,241.13,94.85998577]
[1757699392715,0.06,241.14,241.13,127.99998577]
[1757699392909,0.06,241.14,241.13,94.85998577]
[1757699393299,0.06,241.14,241.13,127.99998577]
[1757699394008,0.06,241.14,241.13,11.27284523]
[1757699394207,0.77,241.14,241.12,2.42380405]
[1757699394617,0.77,241.14,241.13,33.14]
[1757699394814,0.77,241.14,241.12,2.42380405]
[1757699395011,0.77,241.14,241.13,33.14]
[1757699395214,0.06,241.14,241.13,33.14]
[1757699396328,0.06,241.14,241.12,2.42380405]
[1757699396516,0.06,241.14,241.13,33.14]
[1757699396726,0.06,241.14,241.12,6.57106081]
[1757699396916,0.06,241.14,241.13,33.14]
[1757699397108,0.06,241.14,241.12,6.57106081]
[1757699397306,0.06,241.14,241.13,33.14]
[1757699398121,0.06,241.14,241.12,6.57109881]
[1757699398326,0.06,241.14,241.13,33.14]
[1757699398843,0.06,241.14,241.13,33.85]
[1757699399013,0.06,241.14,241.13,113.29]
[1757699399437,0.06,241.14,241.13,114.94840917]
[1757699400211,0.06,241.14,241.13,85.95554971]
[1757699400406,0.06,241.17,241.13,85.95554971]
[1757699400407,0.06,241.17,241.13,132.69114372]
[1757699400608,0.06,241.17,241.14,14.30559401]
[1757699400844,0.06,241.17,241.15,33.12]
[1757699401129,0.06,241.17,241.14,0.71]
[1757699401130,0.77,241.17,241.16,33.12]
[1757699401319,0.77,241.17,241.13,83.58714054]
[1757699401523,0.06,241.17,241.14,33.12]
[1757699402428,0.06,241.17,241.15,4.14679659]
[1757699402617,0.06,241.17,241.16,33.12]
[1757699402813,0.06,241.17,241.16,0.71]
[1757699403122,0.06,241.17,241.16,33.12]
[1757699403317,0.06,241.17,241.15,4.14679659]
[1757699403716,0.06,241.17,241.16,33.12]
[1757699404436,0.06,241.17,241.15,79.44]
[1757699404611,0.06,241.17,241.16,33.12]
[1757699405435,0.06,241.17,241.15,83.58679597]
[1757699405615,0.06,241.17,241.16,33.12]
[1757699407139,0.77,241.17,241.16,33.12]
[1757699407509,0.77,241.17,241.12,2.42380405]
[1757699407732,0.77,241.17,241.13,33.12]
[1757699407733,0.71,241.16,241.13,33.12]
[1757699407932,0.71,241.15,241.12,2.42380405]
[1757699408124,0.71,241.15,241.13,33.12]
[1757699408321,0.06,241.17,241.13,33.83]
[1757699408636,0.06,241.17,241.13,37.97701664]
[1757699408937,0.06,241.17,241.14,33.83]
[1757699409527,0.06,241.17,241.14,33.12]
[1757699409742,0.71,241.16,241.15,33.12]
[1757699409914,0.06,241.17,241.15,33.12]
[1757699410112,0.77,241.17,241.15,33.12]
[1757699410331,0.06,241.17,241.12,6.57111126]
[1757699410534,0.71,241.16,241.12,6.57111126]
[1757699410725,0.06,241.17,241.13,4.14706327]
[1757699410921,0.06,241.17,241.14,33.12]
[1757699411528,0.06,241.17,241.14,0.71]
[1757699411729,0.06,241.17,241.15,33.12]
[1757699411934,0.06,241.17,241.12,3.13380405]
[1757699412546,0.77,241.17,241.13,33.12]
[1757699412940,0.77,241.17,241.12,3.13380405]
[1757699413244,0.71,241.16,241.12,2.42380405]
[1757699413434,4.20645275,241.17,241.12,2.42380405]
[1757699413435,0.71,241.15,241.12,81.86380405]
[1757699413632,6.79092387,241.17,241.12,114.98380405]
[1757699413633,4.20645275,241.17,241.12,114.98380405]
[1757699413840,4.91647282,241.17,241.13,33.12]
[1757699414035,0.71,241.16,241.13,33.12]
[1757699414621,4.20647282,241.17,241.13,33.12]
[1757699414831,0.06,241.17,241.14,0.71]
[1757699415035,0.06,241.17,241.13,33.12]
[1757699415323,0.06,241.17,241.15,0.71]
[1757699415938,0.06,241.17,241.14,33.12]
[1757699416139,0.06,241.17,241.14,33.83]
[1757699416644,4.91649096,241.17,241.15,33.12]
[1757699416946,0.71,241.16,241.14,79.44]
[1757699417540,14.57262273,241.17,241.14,112.54]
[1757699417725,4.20649096,241.17,241.14,113.25]
[1757699417930,4.20649096,241.17,241.14,112.54]
[1757699418148,4.20649096,241.17,241.15,33.1]
[1757699418652,4.20649096,241.17,241.16,33.1]
[1757699419032,4.20649096,241.17,241.15,80.15]
[1757699419246,4.20649096,241.17,241.16,33.1]
[1757699419926,4.20649096,241.17,241.15,79.44]
[1757699420333,4.20649096,241.17,241.16,33.1]
[1757699420939,4.20649096,241.17,241.15,79.44]
[1757699421144,4.91649096,241.17,241.15,112.54]
[1757699421352,4.20649096,241.17,241.15,79.44]
[1757699421527,4.91649096,241.17,241.15,112.54]
[1757699421726,4.91649096,241.17,241.15,79.44]
[1757699422749,0.71,241.16,241.15,79.44]
[1757699423936,4.20649096,241.17,241.15,79.44]
[1757699426037,4.20649096,241.17,241.15,112.54]
[1757699427244,4.20649096,241.17,241.15,79.44]
[1757699427654,0.68,241.16,241.15,79.44]
[1757699428031,4.20649096,241.17,241.15,79.44]
[1757699428236,4.88649096,241.17,241.15,79.44]
[1757699428942,4.20649096,241.17,241.15,79.44]
[1757699429345,0.68,241.16,241.12,2.42380405]
[1757699429539,14.57262273,241.17,241.12,2.42380405]
[1757699429540,0.68,241.15,241.12,2.42380405]
[1757699430052,17.15709385,241.17,241.12,2.42380405]
[1757699430244,0.68,241.16,241.12,2.42380405]
[1757699430442,17.15709385,241.17,241.12,2.42380405]
[1757699430443,14.57262273,241.17,241.12,2.42380405]
[1757699430657,4.20649096,241.17,241.12,2.42380405]
[1757699430842,0.06,241.17,241.13,33.79]
[1757699431052,0.06,241.17,241.14,0.69]
[1757699431239,4.20646618,241.17,241.15,33.1]
[1757699431956,4.20646618,241.17,241.13,0.72]
[1757699432169,2.58447112,241.14,241.13,0.03]
[1757699432351,0.68,241.16,241.13,0.03]
[1757699432352,2.58447112,241.15,241.13,0.03]
[1757699432534,4.14696856,241.14,241.13,0.03]
[1757699432863,7.41143968,241.14,241.13,0.03]
[1757699433062,4.82696856,241.14,241.13,0.03]
[1757699433560,7.41143968,241.14,241.13,0.03]
[1757699433973,6.73143968,241.14,241.13,0.03]
[1757699434258,7.41143968,241.14,241.13,0.03]
[1757699434462,16.18006513,241.13,241.12,2.42380405]
[1757699434652,16.86006513,241.13,241.12,2.42380405]
[1757699436060,39.59559401,241.12,241.11,0.03]
[1757699436368,42.18006513,241.12,241.11,0.03]
[1757699436558,40.27559401,241.12,241.11,0.03]
[1757699436756,42.86006513,241.12,241.11,0.03]
[1757699438138,47.00737767,241.12,241.11,0.03]
[1757699438861,33.41178366,241.12,241.11,0.03]
[1757699441157,21.00737767,241.12,241.11,0.03]
[1757699441466,26.0,241.09,241.07,0.03]
[1757699441846,3.26447112,241.08,241.07,0.03]
[1757699442247,15.71389533,241.08,241.07,0.03]
[1757699442468,19.86189599,241.08,241.07,0.03]
[1757699442666,17.27742487,241.08,241.07,0.03]
[1757699442870,19.86189599,241.08,241.07,0.03]
[1757699444271,33.45749,241.08,241.07,0.03]
[1757699445552,43.79537448,241.08,241.07,0.03]
[1757699446166,30.87301888,241.08,241.07,0.03]
[1757699446366,66.53749,241.08,241.07,0.03]
[1757699446542,33.45749,241.08,241.07,0.03]
[1757699446746,66.53749,241.08,241.07,0.03]
[1757699447175,76.87537448,241.08,241.07,0.03]
[1757699447546,63.27301888,241.08,241.07,0.03]
[1757699447844,12.44942421,241.08,241.07,0.72]
[1757699448251,16.59742487,241.08,241.07,0.72]
[1757699448455,4.14800066,241.08,241.07,0.03]
[1757699448858,33.08,241.11,241.07,0.74]
[1757699449358,2.58447112,241.09,241.07,0.03]
[1757699449549,4.14800066,241.08,241.07,0.03]
[1757699449749,2.58447112,241.11,241.07,0.03]
[1757699449950,63.93731254,241.12,241.07,0.03]
[1757699450184,66.52178366,241.12,241.07,0.03]
[1757699450384,0.71,241.11,241.07,0.03]
[1757699451265,3.29447112,241.1,241.07,0.03]
[1757699451459,4.14800066,241.08,241.07,0.03]
[1757699452283,6.73387534,241.1,241.07,0.03]
[1757699452284,4.14774621,241.1,241.07,0.74]
[1757699452453,4.14774621,241.1,241.08,0.71]
[1757699452652,4.14940422,241.12,241.09,0.71]
[1757699452858,4.14731588,241.12,241.1,0.71]
[1757699453084,4.14731588,241.12,241.07,0.03]
[1757699453268,4.14731588,241.12,241.1,0.71]
[1757699453456,4.14714054,241.13,241.1,0.71]
[1757699453656,6.73161166,241.13,241.08,0.71]
[1757699453975,2.58447112,241.12,241.08,0.71]
[1757699454178,2.58447112,241.09,241.07,0.03]
[1757699454475,2.58447112,241.08,241.07,0.03]
[1757699455564,6.73247178,241.08,241.07,0.03]
[1757699456580,7.41247178,241.08,241.07,0.03]
[1757699456881,6.73247178,241.08,241.07,0.03]
[1757699457780,7.41247178,241.08,241.07,0.03]
[1757699458382,6.73247178,241.08,241.07,0.03]
[1757699459776,30.14800066,241.08,241.07,0.03]
[1757699460067,65.79247178,241.08,241.07,0.03]
[1757699461088,30.14800066,241.08,241.07,0.03]
[1757699461385,65.79247178,241.08,241.07,0.03]
[1757699462299,66.47247178,241.08,241.07,0.03]
[1757699462462,67.93331546,241.08,241.07,0.03]
[1757699462667,67.25331546,241.08,241.07,0.03]
[1757699463475,4.14800066,241.08,241.07,0.03]
[1757699463796,67.25331546,241.08,241.07,0.03]
[1757699464291,30.14800066,241.08,241.07,0.03]
[1757699464492,80.84890947,241.08,241.07,0.03]
[1757699464787,76.80359467,241.08,241.07,0.03]
[1757699464992,80.84890947,241.08,241.07,0.03]
[1757699465490,47.78890947,241.08,241.07,0.03]
[1757699465797,81.52890947,241.08,241.07,0.03]
[1757699466784,85.57422427,241.08,241.07,0.03]
[1757699468579,52.51422427,241.08,241.07,0.03]
[1757699468780,85.57422427,241.08,241.07,0.03]
[1757699469432,43.74359467,241.08,241.07,0.03]
[1757699469588,47.78890947,241.08,241.07,0.03]
[1757699470088,80.84890947,241.08,241.07,0.74]
[1757699470294,80.84890947,241.08,241.07,0.03]
[1757699470884,76.80359467,241.08,241.07,0.03]
[1757699471086,80.84890947,241.08,241.07,0.03]
[1757699472092,82.50890158,241.08,241.07,0.03]
[1757699472480,87.23421638,241.08,241.07,0.03]
[1757699472686,83.18890158,241.08,241.07,0.03]
[1757699473509,87.23421638,241.08,241.07,0.03]
[1757699475034,54.17421638,241.08,241.07,0.03]
[1757699475208,13.59559401,241.07,241.04,0.03]
[1757699475410,43.64090881,241.05,241.04,0.03]
[1757699475604,43.74411091,241.05,241.04,0.03]
[1757699475807,80.84942571,241.05,241.04,0.03]
[1757699476020,47.78942571,241.05,241.04,0.03]
[1757699476726,76.80411091,241.05,241.04,0.03]
[1757699476904,84.99939248,241.05,241.04,0.03]
[1757699477100,97.11405429,241.05,241.04,0.03]
[1757699479619,92.96408752,241.05,241.04,0.03]
[1757699479934,66.96408752,241.05,241.04,0.03]
[1757699482014,67.64408752,241.05,241.04,0.03]
[1757699482430,67.62408752,241.05,241.04,0.03]
[1757699483021,34.58408752,241.05,241.04,0.03]
[1757699483228,69.28449308,241.05,241.04,0.03]
[1757699483625,39.59559401,241.02,240.9,0.03]
[1757699483820,4.0453148,240.95,240.93,0.71]
[1757699484015,37.0853148,240.94,240.93,0.71]
[1757699484214,33.04,240.94,240.93,0.71]
[1757699484443,37.0853148,240.94,240.93,0.71]
[1757699485532,54.8313197,240.94,240.93,0.71]
[1757699486318,17.64090881,240.94,240.93,0.71]
[1757699486518,1.6608192,240.98,240.93,0.71]
[1757699486741,30.1499054,240.97,240.93,0.71]
[1757699487039,33.04,240.96,240.93,0.71]
[1757699487747,4.15020311,240.96,240.93,0.71]
[1757699488033,33.04,240.95,240.93,0.71]
[1757699488626,30.0453148,240.97,240.93,0.71]
[1757699488822,33.04,240.96,240.93,0.71]
[1757699489042,33.04,240.96,240.93,0.74]
[1757699489527,33.04,240.96,240.93,0.03]
[1757699489844,33.04,240.96,240.94,0.7]
[1757699490050,33.04,240.96,240.95,0.7]
[1757699490421,34.19522674,240.97,240.95,0.7]
[1757699490622,33.04,240.96,240.95,0.7]
[1757699490829,33.04,240.96,240.93,0.03]
[1757699491323,37.0853148,240.96,240.93,0.03]
[1757699491627,37.0853148,240.96,240.93,0.73]
[1757699491847,41.23548502,240.96,240.93,0.73]
[1757699492151,43.64090881,240.94,240.93,0.03]
[1757699492453,76.68090881,240.94,240.93,0.03]
[1757699493546,81.4813197,240.94,240.93,0.03]
[1757699493939,91.85734692,240.94,240.9,0.03]
[1757699494137,43.64090881,240.91,240.9,0.03]
[1757699494341,50.68090881,240.91,240.9,0.03]
[1757699494549,51.33090881,240.91,240.9,0.03]
[1757699494936,52.99241788,240.91,240.9,0.03]
[1757699495527,52.99241788,240.91,240.89,0.2]
[1757699495528,37.74669405,240.9,240.89,1e-08]
[1757699495745,39.59559401,240.87,240.78,0.73]
[1757699495937,50.68090881,240.86,240.78,0.73]
[1757699496136,51.33090881,240.86,240.78,0.73]
[1757699496543,55.37622361,240.86,240.78,0.03]
[1757699497051,50.68090881,240.86,240.82,0.9]
[1757699497636,54.83269823,240.86,240.82,0.9]
[1757699497864,54.83269823,240.86,240.82,0.2]
[1757699498234,55.48269823,240.86,240.82,0.2]
[1757699498858,17.74738343,240.86,240.82,0.2]
[1757699499073,4.15157394,240.88,240.85,0.73]
[1757699499364,37.0853148,240.87,240.86,0.7]
[1757699499532,4.15178942,240.86,240.85,0.03]
[1757699499951,26.0,240.87,240.85,0.03]
[1757699500250,33.04,240.86,240.85,0.03]
[1757699500456,4.15122067,240.9,240.85,0.03]
[1757699500646,33.04,240.89,240.85,0.03]
[1757699500845,33.04,240.89,240.86,0.7]
[1757699501052,33.04,240.89,240.87,0.7]
[1757699501231,37.0853148,240.89,240.87,0.7]
[1757699501436,26.0,240.86,240.85,0.03]
[1757699501735,63.19178942,240.86,240.85,0.03]
[1757699502357,63.19178942,240.86,240.85,0.73]
[1757699502735,26.0,240.86,240.85,0.73]
[1757699503065,33.04,240.86,240.85,0.73]
[1757699503235,26.0,240.9,240.85,0.73]
[1757699503436,26.0,240.89,240.86,0.7]
[1757699503753,26.0,240.89,240.87,0.7]
[1757699504058,33.04,240.88,240.85,0.03]
[1757699504434,33.04,240.88,240.86,0.7]
[1757699504636,26.0,240.9,240.87,0.7]
[1757699504845,59.04,240.89,240.88,0.7]
[1757699506438,26.0,240.89,240.88,0.7]
[1757699506763,59.02,240.89,240.88,0.7]
[1757699507454,26.0,240.89,240.88,0.7]
[1757699507656,59.02,240.89,240.88,0.7]
[1757699507843,26.0,240.89,240.88,0.7]
[1757699508048,59.02,240.89,240.88,0.7]
[1757699508262,63.17127236,240.89,240.88,0.7]
[1757699509749,63.17127236,240.89,240.86,0.66]
[1757699510064,63.17127236,240.89,240.87,0.66]
[1757699510361,63.17127236,240.89,240.85,0.69]
[1757699510560,59.02,240.88,240.86,0.66]
[1757699510742,59.02,240.88,240.87,0.66]
[1757699512255,26.0,240.88,240.87,0.66]
[1757699512448,59.02,240.88,240.87,0.66]
[1757699512647,59.02,240.88,240.85,0.69]
[1757699512855,59.02,240.88,240.86,0.66]
[1757699513241,59.02,240.88,240.87,0.66]
[1757699513444,26.0,240.89,240.87,0.66]
[1757699513645,33.02,240.88,240.85,83.62196049]
[1757699513847,33.02,240.88,240.85,0.03]
[1757699514357,33.02,240.88,240.86,0.66]
[1757699514556,33.02,240.88,240.87,0.66]
[1757699514969,33.02,240.88,240.85,0.03]
[1757699515265,33.02,240.88,240.86,0.66]
[1757699515570,33.02,240.88,240.87,0.66]
[1757699517870,26.0,240.89,240.87,0.66]
[1757699518168,33.02,240.88,240.87,0.66]
[1757699519767,26.0,240.89,240.87,0.66]
[1757699519973,33.02,240.88,240.87,0.66]
[1757699520645,33.02,240.88,240.85,80.13]
[1757699520842,37.17147503,240.88,240.86,0.66]
[1757699521068,37.17147503,240.88,240.85,79.47]
[1757699521266,37.84147503,240.88,240.85,79.47]
[1757699521771,4.15147503,240.88,240.86,0.66]
[1757699521965,33.0,240.87,240.86,0.66]
[1757699522469,8.19619894,240.92,240.86,0.66]
[1757699522670,26.0,240.89,240.86,0.66]
[1757699522972,37.15147507,240.88,240.86,0.66]
[1757699523469,37.15147507,240.88,240.86,79.44]
[1757699525551,26.0,240.86,240.85,0.03]
[1757699525764,59.0,240.86,240.85,0.03]
[1757699528173,63.82178942,240.86,240.85,0.03]
[1757699528371,63.15178942,240.86,240.85,0.03]
[1757699528566,66.41411465,240.86,240.85,0.03]
[1757699528767,65.74411465,240.86,240.85,0.03]
[1757699529071,80.00970866,240.86,240.85,0.03]
[1757699529368,70.00970866,240.86,240.85,0.03]
[1757699529571,4.15178942,240.86,240.85,0.03]
[1757699529774,33.0,240.86,240.85,0.03]
[1757699530070,34.66171614,240.86,240.85,0.69]
[1757699530281,33.06,240.87,240.85,0.69]
[1757699530456,33.06,240.87,240.86,0.66]
[1757699530771,0.06,240.87,240.86,0.66]
[1757699534465,4.21161705,240.87,240.85,0.03]
[1757699534864,37.21161705,240.87,240.85,0.03]
[1757699535177,37.21161705,240.87,240.85,79.47]
[1757699536652,40.47394228,240.87,240.85,79.47]
[1757699537372,37.76745965,240.87,240.85,79.47]
[1757699537577,40.35978488,240.87,240.85,79.47]
[1757699537772,2.59232523,240.86,240.85,79.47]
[1757699537959,3.26232523,240.86,240.85,79.47]
[1757699538164,40.39411465,240.86,240.85,79.47]
[1757699538768,13.59559401,240.92,240.85,79.47]
[1757699538769,23.97262083,240.92,240.85,0.69]
[1757699538973,26.0,240.88,240.85,0.69]
[1757699539183,58.98,240.88,240.85,0.69]
[1757699539479,58.98,240.88,240.86,0.66]
[1757699539870,58.98,240.88,240.85,0.03]
[1757699540185,4.15161705,240.87,240.85,0.03]
[1757699540477,35.57232523,240.86,240.85,0.03]
[1757699540685,32.98,240.86,240.85,0.03]
[1757699542383,4.1519618,240.85,240.83,0.03]
[1757699542563,4.1519618,240.85,240.83,0.69]
[1757699543281,30.15133924,240.89,240.84,0.66]
[1757699543484,32.98,240.88,240.85,0.66]
[1757699543795,2.59232523,240.87,240.83,79.47]
[1757699543968,35.57232523,240.86,240.83,79.47]
[1757699544280,32.98,240.86,240.83,80.16]
[1757699544867,4.15181165,240.86,240.84,0.69]
[1757699545068,37.13181165,240.86,240.85,0.03]
[1757699545678,26.06,240.87,240.85,0.72]